[Event "*** Titled Tuesday 3|2 Blitz"]
[Site "Chess.com"]
[Date "2015.11.03"]
[Round "1"]
[White "pedromartinez91"]
[Black "yurisolo"]
[Result "0-1"]
[WhiteElo "2176"]
[BlackElo "2484"]
[TimeControl "180+2"]
[EndTime "11:09:16 PST"]
[Termination "yurisolo won by resignation"]

1. e4 {[%clk 0:02:52.9]} 1... c5 {[%clk 0:02:59.5]} 2. Nf3 {[%clk 0:02:51.7]}
2... e6 {[%clk 0:03:01]} 3. d4 {[%clk 0:02:51]} 3... cxd4 {[%clk 0:03:02.9]} 4.
Nxd4 {[%clk 0:02:49.6]} 4... Nc6 {[%clk 0:03:04.4]} 5. Nc3 {[%clk 0:02:46.6]}
5... d6 {[%clk 0:03:05.3]} 6. Be2 {[%clk 0:02:44.1]} 6... Nf6 {[%clk 0:03:06.5]}
7. O-O {[%clk 0:02:42.5]} 7... Be7 {[%clk 0:03:07.8]} 8. Be3 {[%clk 0:02:41.2]}
8... O-O {[%clk 0:03:09.3]} 9. Kh1 {[%clk 0:02:40.3]} 9... Bd7 {[%clk
0:03:10.5]} 10. f4 {[%clk 0:02:39.2]} 10... Nxd4 {[%clk 0:03:10.8]} 11. Qxd4
{[%clk 0:02:33.4]} 11... Bc6 {[%clk 0:03:12.7]} 12. Rad1 {[%clk 0:02:25.3]}
12... Qc7 {[%clk 0:03:06.1]} 13. Bf3 {[%clk 0:02:24.2]} 13... Rfd8 {[%clk
0:02:53]} 14. Rf2 {[%clk 0:02:11.8]} 14... b5 {[%clk 0:02:38.6]} 15. Rfd2 {[%clk
0:01:55.2]} 15... Qb7 {[%clk 0:02:35.1]} 16. a3 {[%clk 0:01:51]} 16... a5 {[%clk
0:02:35.6]} 17. Qb6 {[%clk 0:01:39.1]} 17... b4 {[%clk 0:02:30.1]} 18. axb4
{[%clk 0:01:37.7]} 18... axb4 {[%clk 0:02:30]} 19. Qxb7 {[%clk 0:01:33]} 19...
Bxb7 {[%clk 0:02:31.9]} 20. e5 {[%clk 0:01:15.4]} 20... Bxf3 {[%clk 0:02:14]}
21. exf6 {[%clk 0:01:08.5]} 21... bxc3 {[%clk 0:01:53.6]} 22. fxe7 {[%clk
0:01:04.5]} 22... Re8 {[%clk 0:01:48.4]} 23. gxf3 {[%clk 0:00:20.7]} 23... cxd2
{[%clk 0:01:48.7]} 24. Bxd2 {[%clk 0:00:19.4]} 24... Rxe7 {[%clk 0:01:46.2]} 25.
Bb4 {[%clk 0:00:20.2]} 25... Rb7 {[%clk 0:01:31.5]} 26. c3 {[%clk 0:00:21]}
26... d5 {[%clk 0:01:31.4]} 27. f5 {[%clk 0:00:22.4]} 27... Rb5 {[%clk
0:01:12.6]} 28. fxe6 {[%clk 0:00:23.3]} 28... fxe6 {[%clk 0:01:14.5]} 29. f4
{[%clk 0:00:24.5]} 29... Kf7 {[%clk 0:01:13.9]} 30. Kg2 {[%clk 0:00:24.6]} 30...
Kf6 {[%clk 0:01:10.3]} 31. Kg3 {[%clk 0:00:25.7]} 31... Ra2 {[%clk 0:01:05.8]}
32. Ba3 {[%clk 0:00:24.4]} 32... Rb3 {[%clk 0:01:03.1]} 33. Kg4 {[%clk
0:00:23.9]} 33... g6 {[%clk 0:00:56.9]} 34. Rd3 {[%clk 0:00:21.1]} 34... Ra1
{[%clk 0:00:55.6]} 35. h4 {[%clk 0:00:21.1]} 35... Rg1+ {[%clk 0:00:51.3]} 36.
Kf3 {[%clk 0:00:21.6]} 36... Rh1 {[%clk 0:00:46]} 37. Kg3 {[%clk 0:00:21.3]}
37... Rb7 {[%clk 0:00:41.7]} 38. Re3 {[%clk 0:00:21.8]} 38... Rg1+ {[%clk
0:00:40.3]} 39. Kf3 {[%clk 0:00:21.8]} 39... Rc7 {[%clk 0:00:37.3]} 40. Bd6
{[%clk 0:00:21.9]} 40... Rc4 {[%clk 0:00:38.1]} 41. Be5+ {[%clk 0:00:22.8]}
41... Kf5 {[%clk 0:00:38.9]} 42. Re2 {[%clk 0:00:20.6]} 42... Re4 {[%clk
0:00:38.6]} 43. Rh2 {[%clk 0:00:20.6]} 43... Rf1+ {[%clk 0:00:33.3]} 44. Kg2
{[%clk 0:00:20.6]} 44... Re2+ {[%clk 0:00:32.9]} 45. Kxf1 {[%clk 0:00:21.5]}
45... Rxh2 {[%clk 0:00:34.5]} 46. b4 {[%clk 0:00:23.1]} 46... Ke4 {[%clk
0:00:33.4]} 47. Ke1 {[%clk 0:00:21.6]} 47... Kd3 {[%clk 0:00:27.5]} 48. f5
{[%clk 0:00:19.7]} 48... Re2+ {[%clk 0:00:27.7]} 49. Kd1 {[%clk 0:00:20.7]}
49... Rxe5 {[%clk 0:00:28]} 0-1

[Event "*** Titled Tuesday 3|2 Blitz"]
[Site "Chess.com"]
[Date "2015.11.03"]
[Round "1"]
[White "JammyDodger91"]
[Black "Chopper1905"]
[Result "0-1"]
[WhiteElo "2226"]
[BlackElo "2529"]
[TimeControl "180+2"]
[EndTime "11:09:30 PST"]
[Termination "Chopper1905 won by resignation"]

1. e4 {[%clk 0:03:01.7]} 1... c5 {[%clk 0:02:57.8]} 2. d4 {[%clk 0:03:02.2]}
2... cxd4 {[%clk 0:02:58.1]} 3. c3 {[%clk 0:03:03.6]} 3... dxc3 {[%clk 0:03:00]}
4. Nxc3 {[%clk 0:03:05.5]} 4... Nc6 {[%clk 0:03:01.1]} 5. Nf3 {[%clk 0:03:07.1]}
5... e6 {[%clk 0:03:02.1]} 6. Bc4 {[%clk 0:03:08.3]} 6... Nge7 {[%clk 0:03:02]}
7. Bg5 {[%clk 0:03:08.9]} 7... f6 {[%clk 0:03:02.8]} 8. Be3 {[%clk 0:03:09.8]}
8... Ng6 {[%clk 0:03:03.8]} 9. O-O {[%clk 0:03:06.8]} 9... Be7 {[%clk
0:03:03.8]} 10. Nb5 {[%clk 0:03:01]} 10... O-O {[%clk 0:03:03.5]} 11. Rc1 {[%clk
0:02:53.1]} 11... a6 {[%clk 0:03:02.9]} 12. Nd6 {[%clk 0:02:53.7]} 12... Qc7
{[%clk 0:03:02.3]} 13. Bc5 {[%clk 0:02:54.4]} 13... b6 {[%clk 0:02:51.3]} 14.
Ba3 {[%clk 0:02:55]} 14... Rb8 {[%clk 0:02:36.9]} 15. Bb3 {[%clk 0:02:30.7]}
15... b5 {[%clk 0:02:32.3]} 16. Bc5 {[%clk 0:02:30.5]} 16... Bb7 {[%clk
0:02:28.5]} 17. Nf5 {[%clk 0:02:09]} 17... Bxc5 {[%clk 0:02:25.3]} 18. Rxc5
{[%clk 0:02:10.9]} 18... Rbd8 {[%clk 0:02:17.5]} 19. Nd6 {[%clk 0:02:10.4]}
19... Qb6 {[%clk 0:02:15.5]} 20. Rc1 {[%clk 0:02:11.1]} 20... Na5 {[%clk
0:02:09.1]} 21. Qd4 {[%clk 0:01:58.8]} 21... Qxd4 {[%clk 0:02:00.1]} 22. Nxd4
{[%clk 0:02:00.7]} 22... Ba8 {[%clk 0:01:36.4]} 23. Rc7 {[%clk 0:01:51.4]} 23...
Nc6 {[%clk 0:01:06.3]} 24. Rd1 {[%clk 0:01:52.1]} 24... Nxd4 {[%clk 0:01:01.8]}
25. Rxd4 {[%clk 0:01:52.5]} 25... Ne5 {[%clk 0:01:03.5]} 26. f4 {[%clk
0:01:45.1]} 26... Nc6 {[%clk 0:01:02.4]} 27. Rd2 {[%clk 0:01:46]} 27... Na5
{[%clk 0:01:00.1]} 28. Bd1 {[%clk 0:01:42.7]} 28... Bc6 {[%clk 0:00:58]} 29. b3
{[%clk 0:01:37.1]} 29... Ra8 {[%clk 0:00:57.8]} 30. Be2 {[%clk 0:01:29.1]} 30...
Rfb8 {[%clk 0:00:56.8]} 31. Kf2 {[%clk 0:01:28.8]} 31... Kf8 {[%clk 0:00:57.8]}
32. b4 {[%clk 0:01:23.5]} 32... Nb7 {[%clk 0:00:44.4]} 33. Nxb7 {[%clk
0:01:20.8]} 33... Rxb7 {[%clk 0:00:45.9]} 34. Rxb7 {[%clk 0:01:22.1]} 34... Bxb7
{[%clk 0:00:47.6]} 35. Rxd7 {[%clk 0:01:18.4]} 35... Bxe4 {[%clk 0:00:48.6]} 36.
g4 {[%clk 0:01:16.6]} 36... Rc8 {[%clk 0:00:45.4]} 37. Ke3 {[%clk 0:01:17.8]}
37... Bd5 {[%clk 0:00:45.3]} 38. a4 {[%clk 0:01:15.2]} 38... bxa4 {[%clk
0:00:43.3]} 39. Bxa6 {[%clk 0:01:15.6]} 39... Ra8 {[%clk 0:00:40.7]} 40. b5
{[%clk 0:00:54.2]} 40... a3 {[%clk 0:00:39.9]} 41. Rc7 {[%clk 0:00:55.6]} 41...
a2 {[%clk 0:00:33.8]} 42. Rc1 {[%clk 0:00:56.7]} 42... Ke7 {[%clk 0:00:34.7]}
43. Kd4 {[%clk 0:00:56.3]} 43... Kd6 {[%clk 0:00:35.8]} 44. Ra1 {[%clk 0:00:51]}
44... e5+ {[%clk 0:00:36.1]} 45. fxe5+ {[%clk 0:00:51.5]} 45... fxe5+ {[%clk
0:00:38]} 46. Kc3 {[%clk 0:00:53.4]} 46... Rf8 {[%clk 0:00:39.6]} 47. Kb4 {[%clk
0:00:47.9]} 47... Rf2 {[%clk 0:00:36.8]} 48. Ka3 {[%clk 0:00:39.6]} 48... Kc5
{[%clk 0:00:35.3]} 49. h4 {[%clk 0:00:28.1]} 49... Kb6 {[%clk 0:00:32.9]} 50.
Rg1 {[%clk 0:00:25]} 50... e4 {[%clk 0:00:32.8]} 51. g5 {[%clk 0:00:21.5]} 51...
e3 {[%clk 0:00:33.7]} 52. Bc8 {[%clk 0:00:21.9]} 52... e2 {[%clk 0:00:29.2]} 53.
Bh3 {[%clk 0:00:22.8]} 53... Rf3+ {[%clk 0:00:29.9]} 0-1

[Event "*** Titled Tuesday 3|2 Blitz"]
[Site "Chess.com"]
[Date "2015.11.03"]
[Round "1"]
[White "AndrewMcStone"]
[Black "Canonkasparov"]
[Result "0-1"]
[WhiteElo "2001"]
[BlackElo "2367"]
[TimeControl "180+2"]
[EndTime "11:09:31 PST"]
[Termination "Canonkasparov won by resignation"]

1. d4 {[%clk 0:03:01.4]} 1... d5 {[%clk 0:03:00.7]} 2. c4 {[%clk 0:03:02.7]}
2... c6 {[%clk 0:03:01.9]} 3. Nc3 {[%clk 0:03:03.9]} 3... Nf6 {[%clk 0:03:03]}
4. e3 {[%clk 0:03:05]} 4... a6 {[%clk 0:03:01.2]} 5. Nf3 {[%clk 0:03:03.5]} 5...
Bf5 {[%clk 0:03:01.7]} 6. Qb3 {[%clk 0:02:37.6]} 6... Ra7 {[%clk 0:03:00.1]} 7.
Ne5 {[%clk 0:01:48.7]} 7... h6 {[%clk 0:02:55.4]} 8. Be2 {[%clk 0:01:41.3]} 8...
e6 {[%clk 0:02:55]} 9. O-O {[%clk 0:01:32.6]} 9... Be7 {[%clk 0:02:52.1]} 10.
Bd2 {[%clk 0:01:28.3]} 10... O-O {[%clk 0:02:49]} 11. cxd5 {[%clk 0:01:23.4]}
11... exd5 {[%clk 0:02:42.5]} 12. Rac1 {[%clk 0:01:13.5]} 12... a5 {[%clk
0:02:42]} 13. Na4 {[%clk 0:01:11.5]} 13... Nbd7 {[%clk 0:02:41.4]} 14. Nxd7
{[%clk 0:01:08.8]} 14... Nxd7 {[%clk 0:02:40.6]} 15. a3 {[%clk 0:00:54.7]} 15...
Re8 {[%clk 0:02:40.3]} 16. Bd3 {[%clk 0:00:52.3]} 16... Be6 {[%clk 0:02:36.1]}
17. Bb1 {[%clk 0:00:49.1]} 17... Bf8 {[%clk 0:02:32.8]} 18. Qd3 {[%clk
0:00:47.6]} 18... g6 {[%clk 0:02:33.1]} 19. f3 {[%clk 0:00:40.3]} 19... Bf5
{[%clk 0:02:27.2]} 20. Qc3 {[%clk 0:00:40.9]} 20... Bxb1 {[%clk 0:02:26]} 21.
Rxb1 {[%clk 0:00:42.8]} 21... Bg7 {[%clk 0:02:26.4]} 22. Rbc1 {[%clk 0:00:42.4]}
22... Kh7 {[%clk 0:02:20.7]} 23. Qd3 {[%clk 0:00:43.5]} 23... f5 {[%clk
0:02:19.1]} 24. Rfe1 {[%clk 0:00:40.8]} 24... Qf6 {[%clk 0:02:16.3]} 25. Nc5
{[%clk 0:00:35.7]} 25... Nxc5 {[%clk 0:02:15.4]} 26. Rxc5 {[%clk 0:00:37.6]}
26... a4 {[%clk 0:02:10.2]} 27. Rec1 {[%clk 0:00:32.7]} 27... Re6 {[%clk
0:02:08.1]} 28. Ra5 {[%clk 0:00:27.8]} 28... Rxa5 {[%clk 0:02:07.2]} 29. Bxa5
{[%clk 0:00:29.7]} 29... f4 {[%clk 0:02:06.6]} 30. Bd2 {[%clk 0:00:26.7]} 30...
fxe3 {[%clk 0:01:59.8]} 31. Bxe3 {[%clk 0:00:28.3]} 31... Qe7 {[%clk 0:01:44.7]}
32. Re1 {[%clk 0:00:19.5]} 32... c5 {[%clk 0:01:40.1]} 33. Kf2 {[%clk
0:00:13.3]} 33... cxd4 {[%clk 0:01:39]} 34. Bd2 {[%clk 0:00:14.2]} 34... Rxe1
{[%clk 0:01:37.1]} 35. Bxe1 {[%clk 0:00:16.1]} 35... Qc7 {[%clk 0:01:26.6]} 36.
Bb4 {[%clk 0:00:14.1]} 36... Qc4 {[%clk 0:01:24.8]} 37. Qe2 {[%clk 0:00:11.5]}
37... Qc7 {[%clk 0:01:11.3]} 38. h4 {[%clk 0:00:11.4]} 38... h5 {[%clk
0:01:10.6]} 39. Qd2 {[%clk 0:00:11.4]} 39... b5 {[%clk 0:01:07.2]} 40. Qg5
{[%clk 0:00:11.6]} 40... Qc2+ {[%clk 0:01:04.9]} 41. Kg3 {[%clk 0:00:12.8]}
41... Qf5 {[%clk 0:00:59.6]} 42. Qxf5 {[%clk 0:00:13.3]} 42... gxf5 {[%clk
0:01:00.1]} 43. Kf4 {[%clk 0:00:15.2]} 43... Kg6 {[%clk 0:01:00]} 44. Bd2 {[%clk
0:00:14]} 44... Bh6+ {[%clk 0:00:58.5]} 45. Ke5 {[%clk 0:00:14.1]} 45... Bxd2
{[%clk 0:00:58.7]} 46. Kxd4 {[%clk 0:00:15.2]} 46... Bc1 {[%clk 0:00:59]} 47.
Kxd5 {[%clk 0:00:16.6]} 47... Bxb2 {[%clk 0:00:59.8]} 48. Kc5 {[%clk 0:00:18.5]}
48... Bxa3+ {[%clk 0:01:00.4]} 49. Kxb5 {[%clk 0:00:20.4]} 49... Be7 {[%clk
0:01:00.4]} 50. Kxa4 {[%clk 0:00:22.3]} 50... Bxh4 {[%clk 0:01:01.2]} 51. Kb4
{[%clk 0:00:24.2]} 51... f4 {[%clk 0:01:01.1]} 52. Kc4 {[%clk 0:00:23.9]} 52...
Kf5 {[%clk 0:01:01.5]} 53. Kd4 {[%clk 0:00:25.3]} 53... Bf2+ {[%clk 0:01:02.1]}
54. Kd3 {[%clk 0:00:26.2]} 54... h4 {[%clk 0:01:02.9]} 55. Ke2 {[%clk
0:00:26.7]} 55... Bg3 {[%clk 0:01:03.7]} 56. Kf1 {[%clk 0:00:27.6]} 56... Ke5
{[%clk 0:01:04.8]} 57. Kg1 {[%clk 0:00:28.8]} 57... Kd4 {[%clk 0:01:05.7]} 58.
Kf1 {[%clk 0:00:28.7]} 58... Ke3 {[%clk 0:01:06.5]} 59. Kg1 {[%clk 0:00:29.9]}
59... h3 {[%clk 0:01:05.9]} 60. Kh1 {[%clk 0:00:28.4]} 60... hxg2+ {[%clk
0:01:04]} 61. Kxg2 {[%clk 0:00:29.3]} 61... Ke2 {[%clk 0:01:05.3]} 62. Kg1
{[%clk 0:00:26.5]} 62... Kxf3 {[%clk 0:01:06.2]} 63. Kf1 {[%clk 0:00:26.9]}
63... Ke3 {[%clk 0:01:06.1]} 0-1

[Event "*** Titled Tuesday 3|2 Blitz"]
[Site "Chess.com"]
[Date "2015.11.03"]
[Round "1"]
[White "FairChess_on_YouTube"]
[Black "BIG_Pirate"]
[Result "1-0"]
[WhiteElo "2716"]
[BlackElo "2267"]
[TimeControl "180+2"]
[EndTime "11:09:45 PST"]
[Termination "FairChess_on_YouTube won by resignation"]

1. e4 {[%clk 0:02:53.9]} 1... d5 {[%clk 0:02:57.3]} 2. exd5 {[%clk 0:02:54.5]}
2... Qxd5 {[%clk 0:02:59.2]} 3. d4 {[%clk 0:02:55.6]} 3... e5 {[%clk 0:02:59.4]}
4. dxe5 {[%clk 0:02:56.1]} 4... Qxd1+ {[%clk 0:03:00.3]} 5. Kxd1 {[%clk
0:02:56.5]} 5... Nc6 {[%clk 0:03:01.7]} 6. f4 {[%clk 0:02:36.2]} 6... Bf5 {[%clk
0:03:01.4]} 7. Nf3 {[%clk 0:02:26.9]} 7... O-O-O+ {[%clk 0:03:01.5]} 8. Bd2
{[%clk 0:02:28]} 8... Nh6 {[%clk 0:02:59.2]} 9. h3 {[%clk 0:02:23.1]} 9... Nb4
{[%clk 0:02:44.3]} 10. Na3 {[%clk 0:02:22.5]} 10... Be4 {[%clk 0:02:42.2]} 11.
Ng5 {[%clk 0:02:13]} 11... Bg6 {[%clk 0:02:35]} 12. g4 {[%clk 0:02:04.6]} 12...
f6 {[%clk 0:02:19.7]} 13. Ne6 {[%clk 0:02:01]} 13... Be4 {[%clk 0:02:07]} 14.
Nxd8 {[%clk 0:02:01.2]} 14... Bxh1 {[%clk 0:02:07.6]} 15. Ne6 {[%clk 0:02:02.7]}
15... Be7 {[%clk 0:02:04.2]} 16. Nxg7 {[%clk 0:01:52.6]} 16... fxe5 {[%clk
0:02:00.1]} 17. f5 {[%clk 0:01:46.8]} 17... Nf7 {[%clk 0:01:55.8]} 18. Nc4
{[%clk 0:01:38.2]} 18... Rd8 {[%clk 0:01:47.6]} 19. Ne6 {[%clk 0:01:38.6]} 19...
Rd7 {[%clk 0:01:28.6]} 20. Kc1 {[%clk 0:01:39.4]} 20... Be4 {[%clk 0:01:15.8]}
21. Ne3 {[%clk 0:01:33.9]} 21... Ng5 {[%clk 0:01:06.2]} 22. Bc4 {[%clk
0:01:22.2]} 22... Nxh3 {[%clk 0:01:02.1]} 23. a3 {[%clk 0:01:18.5]} 23... Nd5
{[%clk 0:00:47.6]} 24. Nxd5 {[%clk 0:01:13.4]} 24... Bxd5 {[%clk 0:00:49.5]} 25.
Bxd5 {[%clk 0:01:13.7]} 25... Rxd5 {[%clk 0:00:51.4]} 26. c4 {[%clk 0:01:14.6]}
26... Rd3 {[%clk 0:00:50.3]} 27. Kc2 {[%clk 0:01:15.8]} 27... Rg3 {[%clk
0:00:51.3]} 28. Rh1 {[%clk 0:01:17.3]} 28... e4 {[%clk 0:00:25.1]} 29. Bc3
{[%clk 0:01:10.3]} 29... Ng5 {[%clk 0:00:18.7]} 30. Nxg5 {[%clk 0:01:03.8]}
30... Bxg5 {[%clk 0:00:19.8]} 31. Rxh7 {[%clk 0:01:05.4]} 31... Rxg4 {[%clk
0:00:21.1]} 32. Rg7 {[%clk 0:01:05.5]} 32... Rg3 {[%clk 0:00:14.9]} 33. f6
{[%clk 0:00:36.5]} 33... Rxc3+ {[%clk 0:00:12.5]} 34. bxc3 {[%clk 0:00:38.1]}
34... Bxf6 {[%clk 0:00:14]} 35. Rg4 {[%clk 0:00:38.4]} 35... Be7 {[%clk
0:00:14.1]} 36. Rxe4 {[%clk 0:00:24.8]} 36... Bxa3 {[%clk 0:00:14.6]} 37. Kb3
{[%clk 0:00:26.5]} 37... Bc5 {[%clk 0:00:15.3]} 38. Ka4 {[%clk 0:00:27.5]} 38...
a6 {[%clk 0:00:16.1]} 39. Re5 {[%clk 0:00:28.5]} 39... b6 {[%clk 0:00:17.2]} 40.
Rh5 {[%clk 0:00:30.2]} 40... Kb7 {[%clk 0:00:18.8]} 41. Kb3 {[%clk 0:00:31.6]}
41... Kc6 {[%clk 0:00:20.2]} 42. Rh6+ {[%clk 0:00:32.5]} 42... Kb7 {[%clk
0:00:21.5]} 43. Kc2 {[%clk 0:00:33.4]} 43... b5 {[%clk 0:00:19.7]} 44. Kb3
{[%clk 0:00:32.5]} 44... c6 {[%clk 0:00:19.7]} 45. Rh8 {[%clk 0:00:30.9]} 45...
Kb6 {[%clk 0:00:20.7]} 46. Rb8+ {[%clk 0:00:31.7]} 46... Kc7 {[%clk 0:00:21.7]}
47. Ra8 {[%clk 0:00:32.9]} 47... Kb7 {[%clk 0:00:23.3]} 48. Rg8 {[%clk
0:00:34.1]} 48... Kb6 {[%clk 0:00:24.3]} 49. Rg6 {[%clk 0:00:35.1]} 49... Kb7
{[%clk 0:00:25.3]} 50. Kc2 {[%clk 0:00:34.7]} 50... Kb6 {[%clk 0:00:26.3]} 51.
Kd3 {[%clk 0:00:35.8]} 51... a5 {[%clk 0:00:25.6]} 52. cxb5 {[%clk 0:00:35.8]}
52... Kxb5 {[%clk 0:00:27]} 53. Rg2 {[%clk 0:00:36.7]} 53... a4 {[%clk
0:00:26.9]} 54. Rb2+ {[%clk 0:00:37.6]} 54... Ka5 {[%clk 0:00:22.4]} 55. Kc4
{[%clk 0:00:38.7]} 55... Bd6 {[%clk 0:00:13]} 56. Rd2 {[%clk 0:00:39.4]} 56...
Be7 {[%clk 0:00:08.4]} 57. Rd7 {[%clk 0:00:39.8]} 1-0

[Event "*** Titled Tuesday 3|2 Blitz"]
[Site "Chess.com"]
[Date "2015.11.03"]
[Round "1"]
[White "ruifeng"]
[Black "Blitzstream"]
[Result "1-0"]
[WhiteElo "2154"]
[BlackElo "2409"]
[TimeControl "180+2"]
[EndTime "11:09:58 PST"]
[Termination "ruifeng won by checkmate"]

1. e4 {[%clk 0:03:01.3]} 1... d5 {[%clk 0:03:01.1]} 2. exd5 {[%clk 0:03:01.7]}
2... Qxd5 {[%clk 0:03:03]} 3. Nc3 {[%clk 0:03:01.6]} 3... Qa5 {[%clk 0:03:03.9]}
4. d4 {[%clk 0:03:01.3]} 4... Nf6 {[%clk 0:03:04.8]} 5. Bc4 {[%clk 0:03:02.2]}
5... Bg4 {[%clk 0:03:05.5]} 6. f3 {[%clk 0:03:02.2]} 6... Bf5 {[%clk 0:03:06.5]}
7. Ne2 {[%clk 0:03:03.3]} 7... e6 {[%clk 0:03:06.2]} 8. Ng3 {[%clk 0:03:03]}
8... Bg6 {[%clk 0:03:07.1]} 9. O-O {[%clk 0:03:02]} 9... c6 {[%clk 0:03:05.2]}
10. f4 {[%clk 0:03:01]} 10... Be7 {[%clk 0:03:06.4]} 11. f5 {[%clk 0:03:02]}
11... exf5 {[%clk 0:03:07.5]} 12. Qe2 {[%clk 0:03:00.9]} 12... Qd8 {[%clk
0:02:49]} 13. Nxf5 {[%clk 0:03:00.9]} 13... Bxf5 {[%clk 0:02:48.9]} 14. Rxf5
{[%clk 0:03:01.6]} 14... O-O {[%clk 0:02:49.2]} 15. Be3 {[%clk 0:03:02.1]} 15...
Nbd7 {[%clk 0:02:46.6]} 16. Raf1 {[%clk 0:03:02.4]} 16... g6 {[%clk 0:02:44.9]}
17. R5f3 {[%clk 0:02:53.7]} 17... b5 {[%clk 0:02:44.9]} 18. Bb3 {[%clk
0:02:51.6]} 18... a5 {[%clk 0:02:45.8]} 19. a4 {[%clk 0:02:51.9]} 19... b4
{[%clk 0:02:46.7]} 20. Ne4 {[%clk 0:02:37.4]} 20... Nxe4 {[%clk 0:02:40.4]} 21.
Rxf7 {[%clk 0:02:37.6]} 21... Rxf7 {[%clk 0:02:41.2]} 22. Rxf7 {[%clk
0:02:38.2]} 22... Kh8 {[%clk 0:02:32.9]} 23. Bh6 {[%clk 0:02:33.8]} 23... Bf8
{[%clk 0:01:32.3]} 24. Bxf8 {[%clk 0:02:34.2]} 24... Nxf8 {[%clk 0:01:34.2]} 25.
Qxe4 {[%clk 0:02:35.3]} 25... Qd6 {[%clk 0:01:18.1]} 26. Re7 {[%clk 0:01:50]}
26... Rd8 {[%clk 0:01:11.6]} 27. c3 {[%clk 0:01:50.4]} 27... c5 {[%clk
0:01:07.3]} 28. Re8 {[%clk 0:01:04.4]} 28... Rxe8 {[%clk 0:00:38.7]} 29. Qxe8
{[%clk 0:01:04.7]} 29... Kg7 {[%clk 0:00:25.6]} 30. Qf7+ {[%clk 0:01:05.4]}
30... Kh6 {[%clk 0:00:26.4]} 31. Qf2 {[%clk 0:00:59.9]} 31... cxd4 {[%clk
0:00:23]} 32. cxd4 {[%clk 0:01:00.7]} 32... Nd7 {[%clk 0:00:21.5]} 33. h4 {[%clk
0:00:56.2]} 33... Nf6 {[%clk 0:00:21.8]} 34. Qe3+ {[%clk 0:00:54.8]} 34... Kg7
{[%clk 0:00:22.7]} 35. g3 {[%clk 0:00:50.5]} 35... Ng4 {[%clk 0:00:22.4]} 36.
Qf4 {[%clk 0:00:47.5]} 36... Qxf4 {[%clk 0:00:18.1]} 37. gxf4 {[%clk 0:00:48.6]}
37... Kf6 {[%clk 0:00:20]} 38. Kg2 {[%clk 0:00:48.5]} 38... Kf5 {[%clk 0:00:21]}
39. Kf3 {[%clk 0:00:45]} 39... Nh2+ {[%clk 0:00:21.3]} 40. Ke3 {[%clk
0:00:43.4]} 40... Nf1+ {[%clk 0:00:22.5]} 41. Kd3 {[%clk 0:00:44.4]} 41... Kxf4
{[%clk 0:00:21.4]} 42. Bg8 {[%clk 0:00:44.4]} 42... h6 {[%clk 0:00:22]} 43. Kc4
{[%clk 0:00:44.4]} 43... Ne3+ {[%clk 0:00:21.3]} 44. Kb5 {[%clk 0:00:45.2]}
44... Nf5 {[%clk 0:00:22.7]} 45. d5 {[%clk 0:00:45.1]} 45... Ke5 {[%clk
0:00:22.4]} 46. Kxa5 {[%clk 0:00:36.2]} 46... Nxh4 {[%clk 0:00:23.5]} 47. Kb6
{[%clk 0:00:37]} 47... Nf5 {[%clk 0:00:24.9]} 48. a5 {[%clk 0:00:36.8]} 48...
Nd6 {[%clk 0:00:26.3]} 49. a6 {[%clk 0:00:36.5]} 49... h5 {[%clk 0:00:27.7]} 50.
Kc6 {[%clk 0:00:29.1]} 50... Nc8 {[%clk 0:00:27]} 51. Kc7 {[%clk 0:00:30]} 51...
Na7 {[%clk 0:00:27.9]} 52. d6 {[%clk 0:00:29.8]} 52... Nb5+ {[%clk 0:00:27.9]}
53. Kc6 {[%clk 0:00:28.6]} 53... Na7+ {[%clk 0:00:20.7]} 54. Kb7 {[%clk
0:00:27.9]} 54... Kxd6 {[%clk 0:00:22.2]} 55. Kxa7 {[%clk 0:00:28.5]} 55... Kc7
{[%clk 0:00:24.1]} 56. Bf7 {[%clk 0:00:28.2]} 56... h4 {[%clk 0:00:24.3]} 57.
Bxg6 {[%clk 0:00:29]} 57... h3 {[%clk 0:00:25.8]} 58. Be4 {[%clk 0:00:30.1]}
58... h2 {[%clk 0:00:27.3]} 59. b3 {[%clk 0:00:30.8]} 59... Kd6 {[%clk
0:00:27.8]} 60. Kb6 {[%clk 0:00:31.3]} 60... Ke5 {[%clk 0:00:29.7]} 61. Bh1
{[%clk 0:00:31.8]} 61... Kd4 {[%clk 0:00:31.6]} 62. a7 {[%clk 0:00:32.5]} 62...
Kc3 {[%clk 0:00:33.5]} 63. a8=Q {[%clk 0:00:33]} 63... Kxb3 {[%clk 0:00:35.4]}
64. Qg2 {[%clk 0:00:32.3]} 64... Kc3 {[%clk 0:00:37.3]} 65. Qxh2 {[%clk
0:00:32.3]} 65... b3 {[%clk 0:00:39.2]} 66. Be4 {[%clk 0:00:32.3]} 66... b2
{[%clk 0:00:40.1]} 67. Bb1 {[%clk 0:00:31.5]} 67... Kb3 {[%clk 0:00:42]} 68.
Qc2+ {[%clk 0:00:31.9]} 68... Ka3 {[%clk 0:00:43.9]} 69. Qc3+ {[%clk 0:00:32.2]}
69... Ka4 {[%clk 0:00:45.8]} 70. Bc2# {[%clk 0:00:33.5]} 1-0